[Event "85th Tata Steel Masters 2023"]
[White "Aronian,Levon"]
[Black "Keymer,Vincent"]
[Site "Wijk aan Zee"]
[Round "5.5"]
[Annotator "TA"]
[Result "1-0"]
[Date "2023.01.19"]
[WhiteElo "2735"]
[BlackElo "2696"]
[PlyCount "157"]
[TimeControl "60"]

{[%evp 15,157,14,20,10,27,14,23,30,23,-6,22,0,0,0,0,0,0,0,5,0,0,0,0,0,0,0,0,0,0,0,0,0,0,0,40,0,32,25,42,37,50,49,45,30,68,36,39,49,84,50,103,111,105,38,122,105,137,135,186,118,193,201,193,176,179,104,106,103,115,121,109,111,128,127,120,115,116,98,98,98,98,95,95,95,95,95,110,110,110,110,110,110,110,67,110,110,110,13,110,110,110,110,110,110,110,110,110,95,95,95,95,95,95,95,95,95,112,112,302,298,281,271,301,260,237,272,841,678,835,789,1222,1230,1077,808,1461,1400,1327,1270,1092,1195,1136,1018,1071,854]} 1. e4 {[%emt 0:0:4]} e5 {[%emt 0:0:4]} 2. Nf3 {[%emt 0:0:7]} Nc6 {[%emt 0:0:3]} 3. Bb5 {[%emt 0:0:5][%cal Yf1b5,Yb5a4,Ya4b3][%mdl 32]} a6 {[%emt 0:0:7]} 4. Ba4 {[%emt 0:0:6]} Nf6 {[%emt 0:0:5]} 5. O-O {[%emt 0:0:6]} Be7 {[%emt 0:0:16]} 6. d3 {[%emt 0:0:29]} b5 {[%emt 0:0:15]} 7. Bb3 {[%emt 0:0:11]} d6 8. c3 {[%emt 0:0:0]} O-O {[%emt 0:1:0]} 9. Bc2 {[%emt 0:0:0] C84: Closed Ruy Lopez: Unusual White 6th moves.} Re8 {[%emt 0:11:43]} 10. Re1 {[%emt 0:1:38]} h6 {[%emt 0:5:36]} 11. Nbd2 {[%emt 0:2:6] White has an edge.} Bf8 {[%emt 0:9:32]} 12. d4 {[%emt 0:13:19]} Bb7 {[%emt 0:9:21]} 13. d5 {[%emt 0:0:0] [#]} Nb8 $146 {[%emt 0:2:42]} ({Predecessor:} 13... Ne7 14. b3 c6 15. c4 cxd5 16. cxd5 Nh7 17. Bb2 f5 18. exf5 Nxd5 19. Ne4 Rc8 {½-½ Brodsky,M (2515)-Zvara,P (2290) Pardubice op 1993 (7)} )14. b3 {[%emt 0:1:2]} Nbd7 {[%emt 0:4:13]} 15. c4 {[%emt 0:2:51]} c6 {[%emt 0:5:25]} 16. Nf1 {[%emt 0:0:13]} a5 {[%emt 0:11:28]} 17. Be3 {[%emt 0:15:47]} a4 18. h3 {[%emt 0:0:27]} axb3 19. axb3 {[%emt 0:0:46]} Rxa1 {[%emt 0:0:0]} 20. Qxa1 {[%emt 0:0:0]} Qc7 {[%emt 0:3:40][%cal Rc6d5]} 21. Rc1 {[%emt 0:2:0]} Ra8 {[%emt 0:0:0]} 22. Qb2 {[%emt 0:6:27]} Qa5 {[%emt 0:6:6]} 23. Ng3 {[%emt 0:7:55]} b4 {[%emt 0:2:27]} 24. Ne1 {[%emt 0:2:5]} Nc5 {[%emt 0:2:54]} 25. Rd1 {[%emt 0:6:9]} Nfd7 {[%emt 0:2:4]} 26. Nf5 {[%emt 0:1:36][%cal Yf5d6]} cxd5 {[%emt 0:11:15]} 27. exd5 {[%emt 0:0:25]} Bc8 {[%emt 0:0:0]} 28. Bd2 {[%emt 0:4:8]} Nf6 29. Ng3 {[%emt 0:9:2] Dodges Nfe4} Be7 {[%emt 0:3:44]} 30. Nd3 {[%emt 0:2:25]} Nxd3 {[%emt 0:2:26]} 31. Bxd3 {[%emt 0:7:57]} Bd7 {[%emt 0:5:1]} 32. Bf5 {[%emt 0:2:10]} Be8 {[%emt 0:6:48]} (32... g6 $14 33. Bc2 (33. Bxd7 Nxd7 34. Qc2 h5 $11 )h5 )33. Bb1 $16 {[%emt 0:0:0] White is more active.} Bd7 {[%emt 0:4:46]} 34. f4 {[%emt 0:2:40]} (34. Qc2 $16 )Re8 {[%emt 0:1:59]} ({Black should try} 34... Qa3 $14 35. Qc2 Ba4 36. bxa4 (36. Nf5 $2 Bxb3 37. Nxe7+ Kh8 $19 )Qxg3 )35. Rf1 {[%emt 0:2:44]} ({Don't take} 35. fxe5 Qb6+ 36. Kh2 dxe5 $14 )Bd8 {[%emt 0:1:57]} 36. fxe5 {[%emt 0:1:23]} Qc5+ {[%emt 0:3:19]} (36... Qb6+ $16 {keeps fighting.} 37. Kh1 dxe5 )37. Kh2 {[%emt 0:2:8]} ({Better is} 37. Kh1 $18 Rxe5 38. Bf4 )Rxe5 {[%emt 0:0:0]} (37... dxe5 $16 {is a better defense.} 38. Ne4 Nxe4 39. Bxe4 Bc7 )38. Bf4 $18 {[%emt 0:2:54]} Re8 {[%emt 0:0:0]} 39. Qd2 {[%emt 0:3:15]} h5 {[%emt 0:0:0]} 40. Bg5 {[%emt 0:0:17]} (40. Qd3 $1 $18 )h4 $16 {[%emt 0:0:0][%mdl 64] Deflection} 41. Bxh4 {[%emt 0:53:36]} Qe3 {[%emt 0:10:4]} 42. Qxe3 {[%emt 0:0:0]} (42. Qxb4 g5 43. Bxg5 Qxg5 44. Qxd6 Re3 $15 )Rxe3 {[%emt 0:0:5]} 43. Rf3 $1 {[%emt 0:0:0]} Rxf3 {[%emt 0:14:23]} 44. gxf3 {[%emt 0:0:0]} Be7 {[%emt 0:4:49][%cal Yf6d5]} 45. Bf5 {[%emt 0:0:0]} Be8 {[%emt 0:0:14][%cal Yf6d5]} 46. Bxf6 {[%emt 0:0:0]} Bxf6 {[%emt 0:0:14][%mdl 4096] Endgame KBB-KBN} 47. f4 {[%emt 0:0:0]} g6 {[%emt 0:7:20]} 48. Ne4 {[%emt 0:0:0]} Be7 {[%emt 0:0:13]} 49. Bc8 {[%emt 0:0:0]} f5 {[%emt 0:4:0]} 50. Nf2 {[%emt 0:0:0]} Bd8 {[%emt 0:2:55]} 51. Nd3 {[%emt 0:0:0]} Ba5 {[%emt 0:0:48]} 52. Kg3 {[%emt 0:11:51]} Kg7 {[%emt 0:2:56]} 53. Kf3 {[%emt 0:0:0]} Kf6 {[%emt 0:3:52]} 54. Be6 {[%emt 0:2:21]} Ke7 {[%emt 0:2:26]} 55. Ke2 {[%emt 0:0:0]} Kf6 56. Bc8 {[%emt 0:8:24]} (56. h4 $16 )Ke7 {[%emt 0:0:29]} (56... g5 $1 $11 {keeps the balance.} )57. Ba6 {[%emt 0:0:0]} Bf7 {[%emt 0:0:59]} 58. Bb5 {[%emt 0:0:28]} Kf6 {[%emt 0:1:45]} 59. h4 {[%emt 0:0:0]} Ke7 {[%emt 0:2:29]} 60. Kf3 {[%emt 0:2:4]} Kf6 {[%emt 0:1:34]} 61. Nf2 {[%emt 0:0:38]} Bb6 {[%emt 0:1:26]} 62. Nh3 {[%emt 0:0:29]} Bd4 {[%emt 0:0:30]} 63. Ng5 {[%emt 0:0:3]} Ke7 {[%emt 0:3:46]} 64. Ba6 {[%emt 0:1:36]} Bb6 {[%emt 0:0:6]} 65. Bc8 {[%emt 0:0:49]} Be8 {[%emt 0:0:52]} 66. h5 {[%emt 0:0:18][%mdl 64] h6 would be deadly. Deflection} gxh5 $2 {[%emt 0:0:53] This costs Black the game.} (66... Bd4 $16 67. Be6 gxh5 )67. Bxf5 $18 {[%emt 0:0:51]} Bd4 {[%emt 0:1:24]} 68. Ne4 {[%emt 0:1:7]} Bf7 {[%emt 0:0:0]} 69. Bh7 {[%emt 0:6:18] Black must now prevent f5.} Be8 {[%emt 0:0:58] [#]} 70. Kg3 $1 {[%emt 0:2:5]} Bf7 $2 {[%emt 0:2:54]} (70... Kf8 71. Nxd6 Bd7 )71. Kh3 {[%emt 0:0:0] White is clearly winning.} Be8 {[%emt 0:1:58] [#]} 72. f5 $1 {[%emt 0:0:0]} Bb2 {[%emt 0:1:58]} 73. Bg6 {[%emt 0:0:0] Hoping for Bxe8.} Bd7 {[%emt 0:0:49]} 74. Kh4 {[%emt 0:0:23]} (74. Bxh5 $2 {too greedy.} Bxf5+ 75. Kh4 Bxe4 $19 )Bd4 {[%emt 0:0:28]} 75. Kxh5 {[%emt 0:0:0]} Bc8 {[%emt 0:3:13]} 76. Kg5 {[%emt 0:0:0] Strongly threatening f6+.} Be3+ {[%emt 0:0:0]} 77. Kg4 {[%emt 0:0:0]} Bd4 {[%emt 0:0:40]} 78. Bh7 {[%emt 0:1:19]} Bf6 {[%emt 0:0:0]} 79. Bg8 {[%emt 0:0:56] Weighted Error Value: White=0.13 (very precise) /Black=0.15 (very precise)} 1-0

[Event "85th Tata Steel Masters 2023"]
[White "Maghsoodloo,Parham"]
[Black "Van Foreest,Jorden"]
[Site "Wijk aan Zee"]
[Round "5.6"]
[Annotator "TA"]
[Result "1-0"]
[Date "2023.01.19"]
[WhiteElo "2719"]
[BlackElo "2681"]
[PlyCount "89"]
[TimeControl "60"]

{[%evp 9,89,15,51,58,52,45,43,27,16,17,102,106,122,111,102,110,106,112,133,66,68,87,63,70,75,51,58,54,55,50,60,52,70,30,50,0,7,0,162,162,162,162,162,162,162,137,137,144,141,141,191,168,227,211,221,231,231,213,231,215,364,364,352,343,404,351,388,420,420,420,435,422,411,388,381,381,381,351,718,769,723,681]} 1. d4 {[%emt 0:0:2]} d5 {[%emt 0:0:27]} 2. c4 {[%emt 0:0:7]} dxc4 {[%emt 0:0:30]} 3. e4 {[%emt 0:0:22]} e5 {[%emt 0:0:24]} 4. Nf3 {[%emt 0:0:0]} Bb4+ {[%emt 0:0:16]} 5. Nc3 {[%emt 0:0:0]} Nf6 {[%emt 0:0:43]} 6. Nxe5 {[%emt 0:0:0] D20: Queen's Gambit Accepted: 3 e3 and 3 e4.} b5 {[%emt 0:0:17] Repels Qa4} 7. f3 {[%emt 0:0:3]} O-O {[%emt 0:0:18] [#]} 8. a3 $146 {[%emt 0:0:3] White is slightly better.} ({Predecessor:} 8. a4 c5 9. dxc5 Qa5 10. Bf4 Bxc3+ 11. bxc3 Qxc3+ 12. Kf2 Nh5 13. g3 Nxf4 14. gxf4 {½-½ Vidit,S (2723)-Nguyen,T (2610) Prague Masters 4th 2022 (7)} )Ba5 {[%emt 0:0:27]} 9. a4 {[%emt 0:0:5]} c5 {[%emt 0:1:40]} 10. dxc5 $16 {[%emt 0:4:17] And now Qxd8 would win.} (10. axb5 cxd4 11. Rxa5 Qxa5 12. Qxd4 Be6 $11 )Qe8 {[%emt 0:8:37] [#]} 11. axb5 $1 {[%emt 0:23:55]} Bxc3+ {[%emt 0:22:3]} 12. bxc3 {[%emt 0:0:0]} Qxe5 {[%emt 0:0:6]} 13. Qd4 {[%emt 0:0:0]} Qc7 {[%emt 0:1:46]} (13... Qxd4 $2 14. cxd4 Be6 15. c6 $18 )14. c6 {[%emt 0:0:0]} (14. Qxc4 a6 15. Qd4 Bb7 $16 )(14. Bxc4 $16 {Hoping for 0-0.} Bb7 15. Be2 )Be6 $14 {[%emt 0:3:28]} 15. Be2 {[%emt 0:0:0] White is more active.} (15. Bxc4 Rd8 16. b6 (16. Qc5 $2 Nbd7 $19 )axb6 $17 )Nxc6 {[%emt 0:5:3]} 16. bxc6 {[%emt 0:0:0]} Rfd8 {[%emt 0:0:59]} 17. Qf2 {[%emt 0:1:50]} a5 {[%emt 0:6:24]} 18. Be3 {[%emt 0:9:1]} Qxc6 {[%emt 0:0:0]} 19. O-O {[%emt 0:4:5]} a4 {[%emt 0:1:30]} 20. Bd4 {[%emt 0:4:6]} Ne8 {[%emt 0:5:56]} 21. f4 {[%emt 0:3:55][%cal Yf3f4,Yf4f5][%mdl 32] Black must now prevent f5.} Qxe4 {[%emt 0:5:15]} 22. f5 {[%emt 0:1:9]} (22. Bf3 $5 {[%cal Rf3e4]} Qxf4 23. Bxa8 Qxf2+ 24. Kxf2 (24. Rxf2 Rxa8 25. Rb1 f6 $14 )Rxa8 25. Rfb1 $14 )Bd5 {[%emt 0:0:43]} 23. Rae1 $36 {[%emt 0:19:8][%mdl 2048] White has the initiative.} (23. Bd1 {simplifies} Qe7 24. Rxa4 Rxa4 25. Bxa4 Nf6 26. Re1 )a3 $2 {[%emt 0:9:9] [#] White now steadily converts the win.} (23... Qe7 $1 $11 {and Black has nothing to worry.} )24. Bh5 $1 $18 {[%emt 0:3:27] A strong pair of Bishops.} ({Inferior is} 24. Bxc4 Qxe1 25. Rxe1 Bxc4 $15 )a2 {[%emt 0:7:10]} 25. Rxe4 {[%emt 0:0:16]} Bxe4 {[%emt 0:0:18]} 26. Ra1 {[%emt 0:0:13]} Rdb8 {[%emt 0:0:23] aiming for ...Rb1+.} 27. Bb6 {[%emt 0:1:2]} (27. Rxa2 $2 {too greedy.} Rb1+ $19 )Ra6 {[%emt 0:1:10]} 28. Rxa2 {[%emt 0:1:54]} Raxb6 {[%emt 0:1:11]} 29. h3 {[%emt 0:1:27]} Nf6 {[%emt 0:0:22]} (29... Rb1+ $16 {was worth a try.} 30. Kh2 Nf6 )30. Be2 {[%emt 0:2:36]} Rb5 {[%emt 0:11:35]} (30... Rb1+ $142 31. Kh2 Rc8 )31. Bxc4 {[%emt 0:2:59]} Rxf5 {[%emt 0:5:10]} 32. Qa7 {[%emt 0:5:42]} Rf8 {[%emt 0:0:0]} 33. Rb2 {[%emt 0:1:27][%cal Ya7f7] White wants to mate with Qxf7+!} h5 {[%emt 0:0:0]} 34. Rb8 {[%emt 0:1:23] Rxf8+ is the strong threat.} Rxb8 {[%emt 0:0:0]} (34... Nh7 $142 35. Rb2 Rg5 )35. Qxb8+ {[%emt 0:0:16]} Kh7 {[%emt 0:0:0]} 36. Bxf7 {[%emt 0:1:8]} Rg5 {[%emt 0:0:0]} 37. g3 {[%emt 0:2:33][%cal Yg2g3,Yg3g4][%mdl 32]} Ra5 {[%emt 0:1:30]} 38. Be6 {[%emt 0:5:5]} Ra1+ {[%emt 0:6:11]} 39. Kf2 {[%emt 0:0:49]} Bg6 {[%emt 0:0:24]} 40. g4 {[%emt 0:0:53]} Rb1 {[%emt 0:1:31]} 41. Qe5 {[%emt 0:56:43] Threatens to win with Bf5.} Ne4+ {[%emt 0:55:15]} 42. Kg2 {[%emt 0:3:42]} Rb2+ {[%emt 0:0:0]} 43. Kf3 {[%emt 0:3:38]} h4 {[%emt 0:0:0]} (43... Rb1 44. Ke3 (44. gxh5 Nd2+ 45. Kg4 Rg1+ 46. Kf4 Rf1+ 47. Kg3 Rg1+ 48. Kf2 Rf1+ 49. Kg2 Rg1+ 50. Kf2 Rf1+ 51. Kg2 Rg1+ 52. Kf2 $18 )Re1+ 45. Kd4 Rd1+ 46. Kc4 Re1 )44. Bd5 {[%emt 0:0:0]} Nf6 {[%emt 0:0:0]} 45. Qg5 {[%emt 0:0:0] Weighted Error Value: White=0.10 (very precise) /Black=0.21 (precise)} 1-0

[Event "85th Tata Steel Masters 2023"]
[White "Gukesh D"]
[Black "Rapport,Richard"]
[Site "Wijk aan Zee"]
[Round "5.7"]
[Annotator "TA"]
[Result "1/2-1/2"]
[Date "2023.01.19"]
[WhiteElo "2725"]
[BlackElo "2740"]
[PlyCount "93"]
[TimeControl "60"]

{[%evp 23,93,10,10,12,18,12,9,13,12,0,12,7,11,0,0,-13,-10,-9,0,0,0,-2,0,-9,0,0,0,-22,0,0,0,0,11,11,12,6,39,0,6,0,0,-24,16,0,0,0,18,0,0,0,18,0,0,0,0,0,0,0,0,0,0,0,0,0,0,0,0,0,0,0,0,0]} 1. d4 {[%emt 0:0:39]} Nf6 {[%emt 0:0:43]} 2. c4 {[%emt 0:0:44]} g6 {[%emt 0:0:33]} 3. Nc3 {[%emt 0:0:28]} d5 {[%emt 0:0:14]} 4. Nf3 {[%emt 0:1:41]} Bg7 {[%emt 0:0:11]} 5. Bg5 {[%emt 0:0:23]} Ne4 {[%emt 0:0:33]} 6. Bf4 {[%emt 0:0:29]} Nxc3 {[%emt 0:0:45]} 7. bxc3 {[%emt 0:0:7]} c5 {[%emt 0:0:43]} 8. e3 {[%emt 0:1:1]} O-O {[%emt 0:0:35]} 9. cxd5 {[%emt 0:3:18]} cxd4 {[%emt 0:0:22]} 10. cxd4 {[%emt 0:0:36]} Qxd5 {[%emt 0:0:20]} 11. Be2 {[%emt 0:0:39]} Qa5+ {[%emt 0:0:22]} 12. Qd2 {[%emt 0:0:15]} Nc6 {[%emt 0:0:13]} 13. Qxa5 {[%emt 0:2:21] D80: Grünfeld: Unusual White 4th moves and 4 Bg5.} Nxa5 {[%emt 0:0:4]} 14. O-O {[%emt 0:0:56]} Be6 {[%emt 0:14:20]} 15. Rfc1 {[%emt 0:4:57]} Rfc8 {[%emt 0:3:37]} 16. Nd2 {[%emt 0:1:59]} Bd5 {[%emt 0:6:21] [#]} 17. a4 $146 {[%emt 0:5:54]} ({Predecessor:} 17. a3 e6 18. Bd6 Bf8 19. Bxf8 Kxf8 20. f3 Nb3 21. Nxb3 Bxb3 22. Rab1 Bd5 23. e4 Rxc1+ 24. Rxc1 Bc6 25. Kf2 Rc8 26. Rb1 Rc7 27. Rc1 Rc8 28. Rb1 Rc7 {½-½ Rakhmanov,A (2633)-Najer,E (2676) RUS-ch 75th Cheboksary 2022 (1)} )e6 {[%emt 0:5:0]} 18. Bf3 {[%emt 0:18:36]} Bxf3 {[%emt 0:1:37]} 19. gxf3 {[%emt 0:0:46]} Bf8 {[%emt 0:9:5]} 20. Rab1 {[%emt 0:8:2]} Ba3 {[%emt 0:6:35]} 21. Rd1 {[%emt 0:0:49]} b6 {[%emt 0:4:56]} 22. Ne4 {[%emt 0:7:58]} Nc4 {[%emt 0:2:40]} 23. h4 {[%emt 0:13:33][%cal Yh2h4,Yh4h5,Yh5h6][%mdl 32]} Kg7 {[%emt 0:7:22]} 24. Rb3 {[%emt 0:11:51]} Be7 {[%emt 0:6:31]} 25. Rc3 {[%emt 0:4:10] And now Rdc1 would win.} a6 {[%emt 0:2:53]} (25... Bxh4 26. Rdc1 $16 )26. h5 {[%emt 0:2:11]} b5 {[%emt 0:2:40]} 27. h6+ {[%emt 0:2:58]} Kf8 {[%emt 0:0:56]} 28. axb5 $1 {[%emt 0:1:14]} axb5 {[%emt 0:0:10]} 29. Rb3 {[%emt 0:0:22]} b4 {[%emt 0:4:51] [#]} 30. Nc5 $1 {[%emt 0:4:38]} Nb6 {[%emt 0:9:30]} (30... Bxc5 31. dxc5 )31. e4 {[%emt 0:4:15]} Rd8 {[%emt 0:0:27] Strongly threatening ...Bxc5.} 32. Rbb1 {[%emt 0:4:32]} Rac8 {[%emt 0:4:59] Inhibits Bc7.} 33. Nb7 {[%emt 0:0:57] The position is equal.} (33. Kg2 $5 {[%cal Rb1b4]} )Rd7 {[%emt 0:0:32]} 34. Nc5 {[%emt 0:0:2]} Rdd8 {[%emt 0:2:13]} 35. Nb7 {[%emt 0:0:2]} (35. Kg2 $5 {[%cal Rb1b4]} )Rd7 {[%emt 0:1:59]} 36. Nc5 {[%emt 0:0:2]} Rdd8 {[%emt 0:1:32]} 37. Kf1 {[%emt 0:3:37]} (37. Kg2 $5 {[%cal Rb1b4]} )g5 {[%emt 0:6:7]} 38. Be3 {[%emt 0:1:39]} e5 {[%emt 0:3:44]} 39. Nb7 {[%emt 0:0:44]} (39. Rxb4 $2 {is the wrong capture.} Bxc5 40. dxc5 Rxd1+ $19 )Rd7 {[%emt 0:0:30]} 40. Nc5 {[%emt 0:0:31]} Bxc5 {[%emt 0:3:4]} 41. dxc5 {[%emt 0:0:59]} Rxd1+ {[%emt 0:0:11]} 42. Rxd1 $11 {[%emt 0:0:5] KRB-KRN} Nc4 {[%emt 0:0:26] [#] White must now prevent ...b3.} 43. Rb1 {[%emt 0:13:3]} Nxe3+ {[%emt 0:1:33]} 44. fxe3 {[%emt 0:0:2]} Rxc5 {[%emt 0:0:32] Threatens to win with ...Rb5.} 45. Rxb4 {[%emt 0:0:5]} Rc6 {[%emt 0:0:48]} 46. Rb5 {[%emt 0:2:34]} Rxh6 {[%emt 0:2:2]} 47. Rxe5 {[%emt 0:0:5] Not much happened in this game.   Weighted Error Value: White=0.07 (flawless) /Black=0.05 (flawless)} 1/2-1/2